bitfinex-derivatives/quotes_BTCF0:USTF0_20250509
["timestamp","ask_amount","ask_price","bid_price","bid_amount"]
[1746805662386,0.6262049,102820.0,102810.0,0.48859296]
[1746805662691,0.6272049,102820.0,102810.0,0.49459296]
[1746805662988,0.87361558,102820.0,102810.0,0.49459296]
[1746805663183,0.87361558,102820.0,102810.0,0.33691296]
[1746805663390,0.87361558,102820.0,102810.0,0.11507897]
[1746805663790,0.87361558,102820.0,102810.0,0.04707897]
[1746805665292,0.87261558,102820.0,102810.0,0.04107897]
[1746805665488,0.6262049,102820.0,102810.0,0.20197926]
[1746805665686,0.6262049,102820.0,102810.0,0.23757926]
[1746805665885,0.2644049,102820.0,102810.0,0.23457926]
[1746805666094,0.6252049,102820.0,102810.0,0.39457926]
[1746805667489,0.87161558,102820.0,102810.0,0.26997897]
[1746805667691,0.1945238,102810.0,102800.0,0.1]
[1746805667996,0.90503448,102810.0,102800.0,0.22460029]
[1746805668485,0.90503448,102810.0,102800.0,0.29650029]
[1746805668891,0.2636238,102810.0,102800.0,0.58831462]
[1746805669091,0.2305238,102810.0,102800.0,0.91557182]
[1746805669589,0.2305238,102810.0,102800.0,0.74931462]
[1746805669590,0.1945238,102810.0,102800.0,0.74931462]
[1746805669985,0.5553238,102810.0,102800.0,0.55477182]
[1746805670182,0.1458874,102820.0,102810.0,0.1945238]
[1746805670386,0.1945196,102820.0,102810.0,0.95375477]
[1746805670583,0.6039176,102830.0,102820.0,0.1945049]
[1746805670784,0.6039176,102830.0,102820.0,0.19750029]
[1746805671398,0.1944934,102830.0,102820.0,0.8500578]
[1746805671790,0.1944934,102830.0,102820.0,0.2947529]
[1746805671985,0.5903934,102830.0,102820.0,0.2947529]
[1746805672190,0.5983934,102830.0,102820.0,0.4557529]
[1746805672398,0.84480408,102830.0,102820.0,0.4557529]
[1746805672586,0.5632934,102830.0,102820.0,0.4557529]
[1746805672886,0.2024934,102830.0,102820.0,0.33115261]
[1746805673090,0.2024934,102830.0,102820.0,0.4557529]
[1746805673400,0.87580408,102830.0,102820.0,0.4557529]
[1746805673898,0.6293934,102830.0,102820.0,0.4557529]
[1746805674100,0.5965934,102830.0,102820.0,0.4557529]
[1746805675301,0.2024934,102830.0,102820.0,0.6502578]
[1746805675802,0.2024934,102830.0,102820.0,0.4557529]
[1746805677898,0.2351934,102830.0,102820.0,0.4557529]
[1746805679106,0.2351934,102830.0,102820.0,0.6502578]
[1746805679300,0.2024934,102830.0,102820.0,0.6502578]
[1746805679805,0.202486,102830.0,102820.0,1.25746848]
[1746805680002,0.008,102830.0,102820.0,1.25746848]
[1746805680304,0.25295161,102850.0,102840.0,0.1944671]
[1746805680508,0.25295161,102850.0,102840.0,0.99510739]
[1746805680710,0.25295161,102850.0,102840.0,0.86674029]
[1746805681002,0.86016229,102850.0,102840.0,0.4456729]
[1746805681192,0.49936229,102850.0,102840.0,0.9664729]
[1746805681395,0.29145161,102850.0,102840.0,0.9664729]
[1746805681603,0.25695161,102850.0,102840.0,1.16094]
[1746805681806,0.26095161,102850.0,102840.0,0.6066729]
[1746805682007,0.26095161,102850.0,102840.0,1.16194]
[1746805682301,0.012,102850.0,102840.0,1.40835068]
[1746805682903,0.012,102850.0,102840.0,1.41795559]
[1746805683102,0.0769431,102870.0,102850.0,0.048608]
[1746805683302,0.2713567,102870.0,102860.0,1.30794027]
[1746805683503,0.2786467,102870.0,102860.0,1.06152959]
[1746805683708,0.2786467,102870.0,102860.0,0.96433399]
[1746805683909,0.2786467,102870.0,102860.0,1.15876329]
[1746805684112,0.2786467,102870.0,102860.0,1.31876329]
[1746805684711,0.37649728,102870.0,102860.0,1.31876329]
[1746805685407,0.37649728,102870.0,102860.0,1.12433399]
[1746805685614,0.37649728,102870.0,102860.0,1.31876329]
[1746805685807,0.37649728,102870.0,102860.0,1.67956329]
[1746805686013,0.37649728,102870.0,102860.0,1.92697397]
[1746805686210,0.18208368,102870.0,102860.0,1.92697397]
[1746805686413,0.18208368,102870.0,102860.0,1.96167397]
[1746805686807,0.37649408,102870.0,102860.0,2.05888997]
[1746805687213,0.37649408,102870.0,102860.0,1.61804999]
[1746805687513,0.37649408,102870.0,102860.0,1.72981941]
[1746805688214,0.37649408,102870.0,102860.0,1.97623009]
[1746805688513,0.18208368,102870.0,102860.0,2.17344609]
[1746805688815,0.01129,102870.0,102860.0,2.17344609]
[1746805689017,0.2057004,102870.0,102860.0,2.17344609]
[1746805689413,0.2057004,102870.0,102860.0,2.07344609]
[1746805689615,0.2057004,102870.0,102860.0,2.17344609]
[1746805689910,0.2057004,102870.0,102860.0,2.07344609]
[1746805690104,0.2057004,102870.0,102860.0,2.01457068]
[1746805690404,0.2057004,102870.0,102860.0,1.91735468]
[1746805690605,0.2057004,102870.0,102860.0,1.37787011]
[1746805690815,0.2057004,102870.0,102860.0,1.36889941]
[1746805691020,0.2057004,102870.0,102860.0,1.91723468]
[1746805691716,0.2057004,102870.0,102860.0,1.72969941]
[1746805691923,0.2057004,102870.0,102860.0,1.97583636]
[1746805692117,0.2057004,102870.0,102860.0,1.53527011]
[1746805692331,0.2396004,102870.0,102860.0,1.53527011]
[1746805692522,0.2396004,102870.0,102860.0,1.72969941]
[1746805693022,0.2057004,102870.0,102860.0,1.97583636]
[1746805693224,0.2057004,102870.0,102860.0,1.72969941]
[1746805694924,0.2391004,102870.0,102860.0,1.36889941]
[1746805695226,0.2391004,102870.0,102860.0,1.20889941]
[1746805695523,0.2057004,102870.0,102860.0,1.20889941]
[1746805697124,0.01129,102870.0,102860.0,1.81583636]
[1746805697317,0.01129,102870.0,102860.0,1.97583636]
[1746805697523,0.2057004,102870.0,102860.0,1.97583636]
[1746805698027,0.01129,102870.0,102860.0,1.97583636]
[1746805698329,0.2057004,102870.0,102860.0,1.41481941]
[1746805698524,0.2384004,102870.0,102860.0,1.05401941]
[1746805698727,0.2384004,102870.0,102860.0,0.98363011]
[1746805699022,1.12793735,102870.0,102860.0,0.23465392]
[1746805699218,1.12793735,102870.0,102840.0,0.3608]
[1746805699219,0.1944482,102850.0,102840.0,0.15744]
[1746805699523,0.44058515,102850.0,102840.0,0.25465479]
[1746805699833,0.50538515,102850.0,102840.0,0.25465479]
[1746805700021,0.2592482,102850.0,102840.0,0.77708218]
[1746805700216,0.2592482,102850.0,102840.0,0.87532189]
[1746805700415,0.2271482,102850.0,102840.0,0.99992218]
[1746805700614,0.6524624,102860.0,102850.0,0.1944482]
[1746805700817,0.6859624,102860.0,102850.0,0.38444849]
[1746805701223,0.6859624,102860.0,102850.0,0.63900219]
[1746805702430,0.3251624,102860.0,102850.0,0.99980219]
[1746805702630,0.2765519,102860.0,102850.0,0.99980219]
[1746805703029,0.2765519,102860.0,102850.0,1.00080219]
[1746805703330,0.2765519,102860.0,102850.0,1.16080219]
[1746805704129,0.2765519,102860.0,102850.0,1.00080219]
[1746805704331,0.3104519,102860.0,102850.0,1.00080219]
[1746805704830,0.3104519,102860.0,102850.0,0.80635399]
[1746805705032,0.3441519,102860.0,102850.0,1.00080219]
[1746805705935,0.3441519,102860.0,102850.0,0.7188819]
[1746805706128,0.95108885,102860.0,102850.0,0.0982337]
[1746805706629,0.95108885,102860.0,102850.0,0.001]
[1746805710126,0.7049519,102860.0,102850.0,0.29267244]
[1746805710434,0.2955293,102860.0,102850.0,1.00051273]
[1746805710834,0.2955293,102860.0,102850.0,0.63971273]
[1746805711135,0.2616293,102860.0,102850.0,1.16051273]
[1746805711332,0.46657902,102870.0,102860.0,0.1944293]
[1746805711525,0.4096643,102870.0,102860.0,0.54086959]
[1746805711932,0.4096643,102870.0,102860.0,0.99889383]
[1746805712226,0.0842331,102870.0,102860.0,1.40503078]
[1746805712431,0.2786435,102870.0,102860.0,1.20643593]
[1746805712634,0.3150435,102870.0,102860.0,1.20643593]
[1746805713039,0.3150435,102870.0,102860.0,1.01200663]
[1746805713239,0.2421004,102870.0,102860.0,1.04643593]
[1746805713439,0.2745004,102870.0,102860.0,0.68563593]
[1746805713742,0.2745004,102870.0,102860.0,0.49122441]
[1746805713931,0.2745004,102870.0,102860.0,0.30118441]
[1746805714240,0.46209846,102870.0,102860.0,0.49098412]
[1746805714431,0.46009846,102870.0,102860.0,0.49098412]
[1746805714633,0.81989846,102870.0,102860.0,0.50682571]
[1746805715938,0.6323004,102870.0,102860.0,0.50682571]
[1746805716243,0.2715004,102870.0,102860.0,0.992226]
[1746805716444,0.2391004,102870.0,102860.0,1.37425336]
[1746805716940,0.2391004,102870.0,102860.0,1.40585336]
[1746805717245,0.01129,102870.0,102860.0,1.56585336]
[1746805717742,0.2057004,102870.0,102860.0,1.56585336]
[1746805719037,0.2057004,102870.0,102860.0,1.56581336]
[1746805719642,0.2057004,102870.0,102860.0,1.56581372]
[1746805720038,0.2365004,102870.0,102860.0,1.56581372]
[1746805720445,0.2057004,102870.0,102860.0,1.56581372]
[1746805720647,0.2057004,102870.0,102860.0,1.37821581]
[1746805720847,0.2365004,102870.0,102860.0,0.86942651]
[1746805721146,0.42409846,102870.0,102860.0,0.85741581]
[1746805721342,0.6306004,102870.0,102860.0,0.85741581]
[1746805721544,0.2698004,102870.0,102860.0,0.85741581]
[1746805721738,0.6306004,102870.0,102860.0,0.85741581]
[1746805721944,0.6306004,102870.0,102860.0,0.85737581]
[1746805722445,0.6306004,102870.0,102860.0,0.6629488]
[1746805722835,0.6306004,102870.0,102860.0,0.8573781]
[1746805723040,0.2698004,102870.0,102860.0,0.8573781]
[1746805723444,0.6306004,102870.0,102860.0,0.8573781]
[1746805723844,0.2698004,102870.0,102860.0,0.8573781]
[1746805724047,0.6306004,102870.0,102860.0,0.8573781]
[1746805725047,0.2698004,102870.0,102860.0,0.8573781]
[1746805725247,0.6306004,102870.0,102860.0,0.8573781]
[1746805725951,0.6306004,102870.0,102860.0,0.85738061]
[1746805726650,0.6306004,102870.0,102860.0,0.66866061]
[1746805726950,0.6306004,102870.0,102860.0,0.82574061]
[1746805727447,0.81819846,102870.0,102860.0,0.19243102]
[1746805727747,1.36659652,102870.0,102860.0,0.03080678]
[1746805728054,0.1944293,102860.0,102850.0,0.1572]
[1746805728243,0.83922736,102860.0,102850.0,0.17216831]
[1746805729349,0.99922736,102860.0,102850.0,0.1602]
[1746805730249,0.99922736,102860.0,102850.0,0.1622]
[1746805730749,0.99922736,102860.0,102850.0,0.005]
[1746805730939,0.99922736,102860.0,102840.0,0.1572]
[1746805730940,0.1944482,102850.0,102840.0,0.1572]
[1746805731145,0.194486,102830.0,102820.0,1.22808]
[1746805731340,0.38208406,102830.0,102820.0,1.81657341]
[1746805731550,0.80948406,102830.0,102820.0,1.81657341]
[1746805731750,0.80948406,102830.0,102820.0,1.62206851]
[1746805731953,0.81677406,102830.0,102820.0,1.62206851]
[1746805732345,0.81677406,102830.0,102820.0,1.59076851]
[1746805732650,0.81777406,102830.0,102820.0,1.59876851]
[1746805732953,0.81777406,102830.0,102820.0,1.58380453]
[1746805733155,0.81777406,102830.0,102820.0,1.59874764]
[1746805733354,0.81777406,102830.0,102820.0,0.43466764]
[1746805733956,0.81877406,102830.0,102820.0,0.44166764]
[1746805734255,0.81877406,102830.0,102820.0,0.42672453]
[1746805735051,0.81877406,102830.0,102820.0,0.31705282]
[1746805735256,0.81877406,102830.0,102820.0,0.26942424]
[1746805735441,0.81877406,102830.0,102820.0,0.1722]
[1746805735646,0.82853911,102830.0,102820.0,0.1722]
[1746805735846,0.82853911,102830.0,102820.0,0.18685312]
[1746805736250,0.98853911,102830.0,102820.0,0.18685312]
[1746805736654,0.20219,102830.0,102820.0,0.5815578]
[1746805736845,0.757476,102830.0,102820.0,0.66377284]
[1746805737247,0.597476,102830.0,102820.0,0.82377284]
[1746805737446,0.237676,102830.0,102820.0,0.82377284]
[1746805737649,0.43407212,102830.0,102820.0,1.17657284]
[1746805737946,0.46817212,102830.0,102820.0,1.17657284]
[1746805738146,0.234676,102830.0,102820.0,1.17657284]
[1746805738454,0.00829,102830.0,102820.0,1.55416449]
[1746805738654,0.00829,102830.0,102820.0,2.00141649]
[1746805738849,0.0729431,102840.0,102830.0,0.194486]
[1746805739052,0.31649208,102860.0,102850.0,0.1944482]
[1746805739360,0.41371198,102860.0,102850.0,0.92776402]
[1746805739556,0.41371198,102860.0,102850.0,1.27930523]
[1746805740358,0.41371198,102860.0,102850.0,1.43930234]
[1746805740656,0.41571198,102860.0,102850.0,2.75170428]
[1746805740856,0.44921198,102860.0,102850.0,2.75170428]
[1746805741158,0.35199208,102860.0,102850.0,2.93930234]
[1746805741360,0.35199208,102860.0,102850.0,2.75170428]
[1746805741557,0.35399208,102860.0,102850.0,2.75170428]
[1746805741856,0.90239014,102860.0,102850.0,1.83884889]
[1746805742059,1.09479014,102860.0,102850.0,0.16]
[1746805742359,0.1944482,102850.0,102840.0,0.8101069]
[1746805742551,0.2603482,102850.0,102840.0,0.868381]
[1746805742754,0.2603482,102850.0,102840.0,0.96560524]
[1746805743147,0.2603482,102850.0,102840.0,0.57180544]
[1746805743350,0.2925482,102850.0,102840.0,0.57180544]
[1746805743559,0.2925482,102850.0,102840.0,0.57280544]
[1746805744762,0.2925482,102850.0,102840.0,0.37833834]
[1746805744962,0.2925482,102850.0,102840.0,0.57280544]
[1746805745462,0.2925482,102850.0,102840.0,0.57280835]
[1746805746162,0.2925482,102850.0,102840.0,0.73280835]
[1746805746852,0.84094626,102850.0,102840.0,0.41514424]
[1746805747058,1.00094626,102850.0,102840.0,0.25514424]
[1746805747257,1.00094626,102850.0,102840.0,0.15792]
[1746805747861,1.00094626,102850.0,102840.0,0.19042]
[1746805748062,0.84094626,102850.0,102840.0,0.19042]
[1746805748364,0.6533482,102850.0,102840.0,0.15792]
[1746805748662,0.84094626,102850.0,102840.0,0.15792]
[1746805748965,0.84294626,102850.0,102840.0,0.15792]
[1746805749158,0.84494626,102850.0,102840.0,0.15692]
[1746805749862,0.194486,102830.0,102820.0,0.15692]
[1746805750057,0.74288406,102830.0,102820.0,0.23703802]
[1746805750361,0.84178406,102830.0,102820.0,0.33427172]
[1746805750563,0.654186,102830.0,102820.0,0.33427172]
[1746805750761,0.654186,102830.0,102820.0,0.17735172]
[1746805751063,0.654186,102830.0,102820.0,0.33427172]
[1746805751658,0.84178406,102830.0,102820.0,0.33627172]
[1746805751959,0.84178406,102830.0,102820.0,0.15892]
[1746805752166,1.00178406,102830.0,102820.0,0.15892]
[1746805752569,1.09903606,102830.0,102820.0,0.002]
[1746805752865,1.09903606,102830.0,102820.0,0.01863159]
[1746805753363,1.09903606,102830.0,102820.0,0.01663159]
[1746805753563,1.10103606,102830.0,102820.0,0.01663159]
[1746805753760,1.10103606,102830.0,102820.0,9e-08]
[1746805754058,0.1945238,102810.0,102800.0,0.0659987]
[1746805754359,0.1945617,102790.0,102780.0,0.11622039]
[1746805754563,1.1133383,102790.0,102780.0,0.11622039]
[1746805754768,1.1771383,102790.0,102780.0,0.11622039]
[1746805755266,1.2744303,102790.0,102780.0,0.11622039]
[1746805755657,1.2754303,102790.0,102780.0,0.12222039]
[1746805756067,1.08783224,102790.0,102780.0,0.12222039]
[1746805756262,0.23624024,102790.0,102780.0,0.28561085]
[1746805756462,0.95784024,102790.0,102780.0,0.18832039]
[1746805756662,0.62974024,102790.0,102780.0,0.18832039]
[1746805757167,0.62974024,102790.0,102780.0,0.19232039]
[1746805757367,0.8173383,102790.0,102780.0,0.19232039]
[1746805757563,0.8163383,102790.0,102780.0,0.18632039]
[1746805757763,0.87642815,102790.0,102780.0,0.18932039]
[1746805757963,0.97372015,102790.0,102780.0,0.12322039]
[1746805758463,0.97372015,102790.0,102780.0,0.007]
[1746805759065,0.26894024,102790.0,102780.0,0.007]
[1746805759367,0.62974024,102790.0,102780.0,0.52487106]
[1746805759567,0.1955617,102790.0,102780.0,1.3476127]
[1746805759770,0.1955617,102790.0,102780.0,1.3787127]
[1746805759969,0.001,102790.0,102780.0,1.3787127]
[1746805760167,0.001,102790.0,102780.0,1.6287127]
[1746805760671,0.38965028,102810.0,102800.0,0.1945428]
[1746805760865,0.34101868,102810.0,102800.0,1.37808444]
[1746805761069,0.09785058,102810.0,102800.0,1.44268444]
[1746805761267,0.29237438,102810.0,102800.0,1.699971]
[1746805761478,0.1945238,102810.0,102800.0,1.699971]
[1746805761769,0.1945238,102810.0,102800.0,1.45328309]
[1746805761967,0.1945238,102810.0,102800.0,1.699971]
[1746805762167,0.1945238,102810.0,102800.0,1.700971]
[1746805762969,0.2431459,102820.0,102810.0,0.1945238]
[1746805763166,0.2431459,102820.0,102810.0,1.27300154]
[1746805763369,0.2431459,102820.0,102810.0,1.02631363]
[1746805763666,0.2431459,102820.0,102810.0,1.1235757]
[1746805764371,0.2504359,102820.0,102810.0,1.37026361]
[1746805764573,0.2504359,102820.0,102810.0,0.92905193]
[1746805764767,0.2845359,102820.0,102810.0,0.89775193]
[1746805764960,0.3181359,102820.0,102810.0,0.89775193]
[1746805765166,0.3191359,102820.0,102810.0,0.73775193]
[1746805765569,0.3221359,102820.0,102810.0,0.58191193]
[1746805765873,0.3221359,102820.0,102810.0,0.56702926]
[1746805766582,0.3221359,102820.0,102810.0,0.76155306]
[1746805766762,0.2885359,102820.0,102810.0,0.76155306]
[1746805767173,0.2885359,102820.0,102810.0,0.92155306]
[1746805768771,0.2885359,102820.0,102810.0,0.72702926]
[1746805768978,0.3226359,102820.0,102810.0,0.72702926]
[1746805769275,0.3226359,102820.0,102810.0,0.56702926]
[1746805769477,0.2885359,102820.0,102810.0,0.56702926]
[1746805769774,0.2544359,102820.0,102810.0,0.76155306]
[1746805769969,0.2544359,102820.0,102810.0,1.05662669]
[1746805770168,0.2544359,102820.0,102810.0,0.96993878]
[1746805771067,0.6152359,102820.0,102810.0,0.33774779]
[1746805771379,0.6800359,102820.0,102810.0,0.12385291]
[1746805771966,0.92672381,102820.0,102810.0,0.28085291]
[1746805772275,0.6800359,102820.0,102810.0,0.28085291]
[1746805772478,0.6800359,102820.0,102810.0,0.26596719]
[1746805772982,0.92672381,102820.0,102810.0,0.0656]
[1746805773181,0.92672381,102820.0,102810.0,0.001]
[1746805773480,0.96022381,102820.0,102810.0,0.001]
[1746805773667,0.96022381,102820.0,102810.0,0.015613]
[1746805774180,1.12022381,102820.0,102810.0,0.015613]
[1746805776883,1.21748781,102820.0,102810.0,0.015613]
[1746805777184,1.21748781,102820.0,102810.0,1e-07]
[1746805777889,1.37420781,102820.0,102810.0,1e-07]
[1746805778182,0.1945806,102780.0,102770.0,0.01584599]
[1746805778381,0.80206851,102780.0,102770.0,0.106242]
[1746805778677,0.86946851,102780.0,102770.0,0.106242]
[1746805778888,0.6227806,102780.0,102770.0,0.09175559]
[1746805779071,1.02946851,102780.0,102770.0,0.09175559]
[1746805779275,1.06136851,102780.0,102770.0,0.06575559]
[1746805779671,1.06236851,102780.0,102770.0,0.08782677]
[1746805779881,0.8156806,102780.0,102770.0,0.10275641]
[1746805780080,0.7513806,102780.0,102770.0,0.13385641]
[1746805780291,0.5913806,102780.0,102770.0,0.13385752]
[1746805780787,0.1965806,102780.0,102770.0,0.48521702]
[1746805780986,0.5573806,102780.0,102770.0,0.29061752]
[1746805781186,0.5886806,102780.0,102770.0,0.29061752]
[1746805781787,0.59833986,102780.0,102770.0,0.49996706]
[1746805781986,0.59833986,102780.0,102770.0,0.49996319]
[1746805782286,0.59833986,102780.0,102770.0,0.30536369]
[1746805782785,0.56703986,102780.0,102770.0,0.49996319]
[1746805783083,0.1965806,102780.0,102770.0,1.55453102]
[1746805783287,0.002,102780.0,102770.0,1.55453102]
[1746805783486,0.002,102780.0,102770.0,1.41744992]
[1746805783782,0.1965806,102780.0,102770.0,1.55453102]
[1746805784890,0.1965806,102780.0,102770.0,1.65453102]
[1746805785294,0.1965806,102780.0,102770.0,1.55453102]
[1746805786886,0.1965806,102780.0,102770.0,1.65453102]
[1746805787888,0.1965806,102780.0,102770.0,1.55453102]
[1746805788491,0.1965806,102780.0,102770.0,1.65453102]
[1746805788687,0.1965806,102780.0,102770.0,1.55453102]
[1746805788888,0.1965806,102780.0,102770.0,1.65453102]
[1746805789290,0.002,102780.0,102770.0,1.65453102]
[1746805789489,0.002,102780.0,102770.0,1.75183102]
[1746805789795,0.2918336,102800.0,102790.0,0.1945617]
[1746805789988,0.2918336,102800.0,102790.0,1.17378368]
[1746805790191,0.2918336,102800.0,102790.0,1.42938368]
[1746805790391,0.2918336,102800.0,102790.0,1.5266836]
[1746805790591,0.2918336,102800.0,102790.0,1.52669561]
[1746805790988,0.25275445,102810.0,102800.0,0.1945428]
[1746805791189,0.25275445,102810.0,102800.0,1.08803679]
[1746805791594,0.25275445,102810.0,102800.0,0.93862041]
[1746805791793,0.28565445,102810.0,102800.0,0.93862041]
[1746805791989,0.28565445,102810.0,102800.0,0.90071761]
[1746805792190,0.28565445,102810.0,102800.0,0.74271761]
[1746805792191,0.31965445,102810.0,102800.0,0.74271761]
[1746805792586,0.68045445,102810.0,102800.0,0.33855042]
[1746805792791,0.68045445,102810.0,102800.0,0.38191761]
[1746805793093,0.25275445,102810.0,102800.0,0.57646041]
[1746805793298,0.28565445,102810.0,102800.0,0.57646041]
[1746805793797,0.28565445,102810.0,102800.0,0.38191761]
[1746805794395,0.31935445,102810.0,102800.0,0.38191761]
[1746805794589,0.31935445,102810.0,102800.0,0.57646041]
[1746805794899,0.31935445,102810.0,102800.0,0.38191761]
[1746805795398,0.31935445,102810.0,102800.0,0.57646041]
[1746805795790,0.31935445,102810.0,102800.0,0.57646979]
[1746805796699,0.31935445,102810.0,102800.0,0.38192699]
[1746805796901,0.31935445,102810.0,102800.0,0.57646979]
[1746805797098,0.28565445,102810.0,102800.0,1.12506841]
[1746805797406,0.28565445,102810.0,102800.0,1.12506969]
[1746805797597,0.28565445,102810.0,102800.0,0.76426969]
[1746805797799,0.28565445,102810.0,102800.0,1.12506969]
[1746805797997,0.28565445,102810.0,102800.0,0.93727107]
[1746805798196,0.28565445,102810.0,102800.0,1.09727107]
[1746805799102,0.1945355,102810.0,102800.0,1.28506969]
[1746805799598,0.32338,102820.0,102810.0,0.1945238]
[1746805799797,0.29178,102820.0,102810.0,1.05995916]
[1746805799999,0.29178,102820.0,102810.0,0.87216054]
[1746805800202,0.29178,102820.0,102810.0,1.12943207]
[1746805800796,0.29178,102820.0,102810.0,1.12943388]
[1746805801400,0.32598,102820.0,102810.0,1.12943388]
[1746805801901,0.32598,102820.0,102810.0,1.13143388]
[1746805802098,0.30163974,102830.0,102820.0,0.1945049]
[1746805802403,0.42776968,102840.0,102830.0,0.194486]
[1746805802601,0.39356968,102840.0,102830.0,0.66542317]
[1746805802802,0.39356968,102840.0,102830.0,0.69922317]
[1746805803304,0.10185058,102840.0,102830.0,1.31727578]
[1746805803498,0.36537882,102850.0,102840.0,0.1944671]
[1746805803802,0.31676142,102850.0,102840.0,1.12494427]
[1746805804101,0.31676142,102850.0,102840.0,1.28218742]
[1746805804102,0.29252805,102850.0,102840.0,1.28218742]
[1746805804298,0.29252805,102850.0,102840.0,1.0943888]
[1746805804497,0.29252805,102850.0,102840.0,1.135185]
[1746805804690,0.29252805,102850.0,102840.0,1.43890742]
[1746805805095,0.29981805,102850.0,102840.0,1.43890742]
[1746805805302,0.29981805,102850.0,102840.0,1.36546806]
[1746805805503,0.29981805,102850.0,102840.0,1.55526668]
[1746805805705,0.29981805,102850.0,102840.0,1.61370232]
[1746805806005,0.29981805,102850.0,102840.0,1.51365962]
[1746805806204,0.29981805,102850.0,102840.0,1.61365962]
[1746805807002,0.10536985,102850.0,102840.0,1.61365962]
[1746805807200,0.2017382,102850.0,102840.0,1.26742536]
[1746805807499,0.44797246,102850.0,102840.0,0.39887826]
[1746805807701,0.44797246,102850.0,102840.0,1.07267826]
[1746805807702,0.51397246,102850.0,102840.0,1.07267826]
[1746805807900,0.51397246,102850.0,102840.0,1.01440241]
[1746805808102,0.51397246,102850.0,102840.0,0.82240241]
[1746805808700,0.87477246,102850.0,102840.0,0.44149015]
[1746805808898,0.87477246,102850.0,102840.0,0.44149066]
[1746805809105,0.87477246,102850.0,102840.0,0.49190241]
[1746805809405,0.6285382,102850.0,102840.0,0.70126095]
[1746805809595,0.2339382,102850.0,102840.0,1.06206095]
[1746805809799,0.2339382,102850.0,102840.0,1.10542814]
[1746805810200,0.2339382,102850.0,102840.0,1.26542814]
[1746805810597,0.06240603,102870.0,102860.0,0.1944293]
[1746805810800,0.37232833,102870.0,102860.0,0.75507649]
[1746805811110,0.104,102900.0,102890.0,0.1943726]
[1746805811299,0.1378,102900.0,102890.0,2.64120686]
[1746805811498,0.104,102900.0,102890.0,2.77691762]
[1746805811718,0.104,102900.0,102890.0,4.47410407]
[1746805812305,0.104,102900.0,102890.0,4.73129207]
[1746805812510,0.12231322,102910.0,102900.0,0.1943537]
[1746805812702,0.12231322,102910.0,102900.0,1.02641172]
[1746805813211,0.31664802,102910.0,102900.0,2.78359817]
[1746805813607,0.12231322,102910.0,102900.0,2.78359817]
[1746805813910,0.12231322,102910.0,102900.0,2.79812391]
[1746805814510,0.12231322,102910.0,102900.0,2.55188965]
[1746805814706,0.2819801,102920.0,102910.0,0.1943348]
[1746805814901,0.03908,102920.0,102910.0,1.08283282]
[1746805815107,0.03908,102920.0,102910.0,1.24283282]
[1746805815298,0.2333959,102920.0,102910.0,1.34000982]
[1746805815502,0.2015959,102920.0,102910.0,1.49804982]
[1746805815705,0.004,102930.0,102920.0,0.1943159]
[1746805815902,0.004,102930.0,102920.0,0.9274321]
[1746805816098,0.004,102930.0,102920.0,1.18743141]
[1746805816314,0.0687,102950.0,102940.0,0.1942782]
[1746805816511,0.0687,102950.0,102940.0,1.51991965]
[1746805816512,0.2629593,102950.0,102940.0,1.51991965]
[1746805816703,0.2629593,102950.0,102940.0,1.58781965]
[1746805816904,0.2284593,102950.0,102940.0,1.68497777]
[1746805817099,0.2284593,102950.0,102940.0,1.84497777]
[1746805817305,0.2284593,102950.0,102940.0,1.59874351]
[1746805817505,0.2629593,102950.0,102940.0,1.04665812]
[1746805817710,0.2629593,102950.0,102940.0,1.55529632]
[1746805817911,0.2629593,102950.0,102940.0,1.80153058]
[1746805818102,0.2284593,102950.0,102940.0,1.84489777]
[1746805818805,0.2804167,102960.0,102950.0,0.1942593]
[1746805819108,0.2804167,102960.0,102950.0,0.6217593]
[1746805819109,0.3118167,102960.0,102950.0,0.6217593]
[1746805819303,0.3118167,102960.0,102950.0,0.86799356]
[1746805819510,0.3118167,102960.0,102950.0,2.4651328]
[1746805819923,0.3118167,102960.0,102950.0,2.21889854]
[1746805820114,0.3138167,102960.0,102950.0,2.21989854]
[1746805820510,0.3138167,102960.0,102950.0,2.02563924]
[1746805820812,0.3158167,102960.0,102950.0,2.21989854]
[1746805821615,0.3158167,102960.0,102950.0,0.0677]
[1746805821805,0.6766167,102960.0,102950.0,0.001]
[1746805822006,0.6766167,102960.0,102950.0,0.25448981]
[1746805822007,0.92285096,102960.0,102950.0,0.25448981]
[1746805822202,1.08285096,102960.0,102950.0,0.001]
[1746805822408,1.17997896,102960.0,102950.0,0.001]
[1746805822607,0.8366167,102960.0,102950.0,0.001]
[1746805822809,1.08285096,102960.0,102950.0,0.001]
[1746805823526,0.8366167,102960.0,102950.0,0.001]
[1746805823817,1.09266505,102960.0,102950.0,0.001]
[1746805828516,0.84643079,102960.0,102950.0,0.001]
[1746805828718,1.09266505,102960.0,102950.0,0.001]
[1746805828919,0.84643079,102960.0,102950.0,0.001]
[1746805829221,1.09266505,102960.0,102950.0,0.001]
[1746805829816,1.09066505,102960.0,102950.0,0.001]
[1746805830015,1.09366505,102960.0,102950.0,0.001]
[1746805830216,0.1942593,102950.0,102940.0,0.22366]
[1746805830423,0.6234593,102950.0,102940.0,0.26702719]
[1746805831424,0.6274593,102950.0,102940.0,0.26802719]
[1746805831629,0.6274593,102950.0,102940.0,0.20072719]
[1746805831926,0.87369356,102950.0,102940.0,0.20072719]
[1746805832112,0.87369356,102950.0,102940.0,0.04436719]
[1746805832822,0.87369356,102950.0,102940.0,0.001]
[1746805833220,1.03569356,102950.0,102940.0,0.001]
[1746805834224,0.87569356,102950.0,102940.0,0.001]
[1746805835926,0.97283356,102950.0,102940.0,0.001]
[1746805837519,0.87569356,102950.0,102940.0,0.001]
[1746805838421,0.6294593,102950.0,102940.0,0.05925901]
[1746805838625,0.6294593,102950.0,102940.0,0.08319182]
[1746805838825,0.6294593,102950.0,102940.0,0.12655901]
[1746805839821,0.6294593,102950.0,102940.0,0.01589182]
[1746805840015,0.91049356,102950.0,102940.0,0.01589182]
[1746805840922,0.6642593,102950.0,102940.0,0.01589182]
[1746805841227,0.6642593,102950.0,102940.0,0.0337]
[1746805841533,0.6642593,102950.0,102940.0,0.001]
[1746805841724,0.6642593,102950.0,102940.0,0.07706719]
[1746805841920,0.6642593,102950.0,102940.0,0.11136719]
[1746805842325,0.6715393,102950.0,102940.0,0.11136719]
[1746805842723,0.6715393,102950.0,102940.0,0.30564539]
[1746805842931,0.6025393,102950.0,102940.0,0.40278463]
[1746805843430,0.2417393,102950.0,102940.0,0.40278463]
[1746805844129,0.2417393,102950.0,102940.0,0.56278463]
[1746805845026,0.2417393,102950.0,102940.0,0.36850643]
[1746805845224,0.2417393,102950.0,102940.0,0.40278463]
[1746805845433,0.2417393,102950.0,102940.0,0.56930643]
[1746805845730,0.2417393,102950.0,102940.0,0.40278463]
[1746805846031,0.2417393,102950.0,102940.0,0.76358463]
[1746805846332,0.2417393,102950.0,102940.0,0.92358463]